[Event "European Online Club-ch-H 2021"]
[Site "Online"]
[Date "2021.03.27"]
[Round "1.20"]
[White "Hald Falkesgaard, Jeppe"]
[Black "Arndt, Magnus"]
[Result "1-0"]
[ECO "E48"]
[WhiteElo "1986"]
[BlackElo "2282"]
[Annotator "NA"]
[PlyCount "175"]
[EventDate "2021.03.27"]
[EventType "team-tourn"]
[EventCountry "NET"]
[SourceTitle "playchess.com"]
[Source "ChessBase"]
[SourceQuality "1"]
[TimeControl "900+5"]

1. c4 {[%emt 0:00:00]} Nf6 {[%emt 0:00:03]} 2. Nc3 {[%emt 0:00:03]} e6 {[%emt 0:00:05]} 3. d4 {[%emt 0:00:06]} Bb4 {[%emt 0:00:03]} 4. e3 {[%emt 0:00:05]} O-O {[%emt 0:00:04]} 5. Bd3 {[%emt 0:00:07]} d5 {[%emt 0:00:28]} 6. Nge2 {[%emt 0:00:10]} Re8 {[%emt 0:01:00]} 7. O-O {[%emt 0:00:20]} Nbd7 {[%emt 0:00:45]} 8. Nf4 {[%emt 0:01:34]} c6 {[%emt 0:01:06]} 9. cxd5 {[%emt 0:02:20]} exd5 {[%emt 0:00:09]} 10. Qc2 {[%emt 0:00:11]} Nf8 {[%emt 0:01:06]} 11. Nce2 {[%emt 0:00:38]} Qe7 {[%emt 0:02:11]} 12. Ng3 {[%emt 0:00:12]} Ng6 {[%emt 0:00:29]} 13. Nxg6 {[%emt 0:00:36]} hxg6 {[%emt 0:00:00]} 14. Bd2 {[%emt 0:00:10]} Bd6 {[%emt 0:00:31]} 15. a3 {[%emt 0:00:52]} Bd7 {[%emt 0:01:27]} 16. Qb3 {[%emt 0:00:24]} Ng4 {[%emt 0:01:50]} 17. Bb4 {[%emt 0:01:50]} Bxb4 {[%emt 0:02:07]} 18. Qxb4 {[%emt 0:00:17]} Qh4 {[%emt 0:00:05]} 19. h3 {[%emt 0:00:15]} Nxe3 {[%emt 0:00:10]} 20. fxe3 {[%emt 0:00:11]} Qxg3 {[%emt 0:00:02]} 21. Rf3 {[%emt 0:00:07]} Qc7 {[%emt 0:00:17]} 22. Raf1 {[%emt 0:00:18]} Be6 {[%emt 0:00:01]} 23. Qe1 {[%emt 0:01:22]} c5 {[%emt 0:00:27]} 24. Qh4 {[%emt 0:00:53]} cxd4 {[%emt 0:00:12]} 25. exd4 {[%emt 0:00:05]} a6 {[%emt 0:00:22]} 26. Qg5 {[%emt 0:01:07]} Rac8 {[%emt 0:00:33]} 27. Rf4 {[%emt 0:00:32]} Qd8 {[%emt 0:00:44]} 28. Qg3 {[%emt 0:00:06]} Rc6 {[%emt 0:00:32]} 29. Rh4 {[%emt 0:00:54]} Rf8 {[%emt 0:00:27]} 30. Rhf4 {[%emt 0:00:28]} Qe7 {[%emt 0:00:02]} 31. Bxg6 {[%emt 0:00:12]} Rcc8 {[%emt 0:00:04]} 32. Bd3 {[%emt 0:00:11]} Bd7 {[%emt 0:00:05]} 33. Rh4 {[%emt 0:00:16]} f5 {[%emt 0:00:04]} 34. Rhf4 {[%emt 0:00:08]} Bb5 {[%emt 0:00:06]} 35. Bxb5 {[%emt 0:00:23]} axb5 {[%emt 0:00:00]} 36. Rxf5 {[%emt 0:00:03]} Rxf5 {[%emt 0:00:00]} 37. Rxf5 {[%emt 0:00:02]} Qe4 {[%emt 0:00:04]} 38. Qg4 {[%emt 0:00:20]} Qe1+ {[%emt 0:00:09]} 39. Kh2 {[%emt 0:00:02]} Rc1 {[%emt 0:00:11]} 40. Qf3 {[%emt 0:00:16]} Qg1+ {[%emt 0:00:05]} 41. Kg3 {[%emt 0:00:03]} Qe1+ {[%emt 0:00:01]} 42. Kg4 {[%emt 0:00:03]} Qe4+ {[%emt 0:00:07]} 43. Qxe4 {[%emt 0:00:10]} dxe4 {[%emt 0:00:00]} 44. Rxb5 {[%emt 0:00:02]} Rc2 {[%emt 0:00:06]} 45. Kg3 {[%emt 0:00:05]} Rc7 {[%emt 0:00:05]} 46. Re5 {[%emt 0:00:03]} Rc2 {[%emt 0:00:02]} 47. Rxe4 {[%emt 0:00:04]} Rxb2 {[%emt 0:00:02]} 48. Kf3 {[%emt 0:00:03]} Kf7 {[%emt 0:00:04]} 49. g4 {[%emt 0:00:05]} Rb3+ {[%emt 0:00:08]} 50. Re3 {[%emt 0:00:03]} Rb2 {[%emt 0:00:00]} 51. Kf4 {[%emt 0:00:04]} Rd2 {[%emt 0:00:05]} 52. Ke5 {[%emt 0:00:05]} Ke7 {[%emt 0:00:04]} 53. Rb3 {[%emt 0:00:12]} Re2+ {[%emt 0:00:06]} 54. Kd5 {[%emt 0:00:02]} Kf6 {[%emt 0:00:03]} 55. Rxb7 {[%emt 0:00:11]} Re3 {[%emt 0:00:02]} 56. Rb6+ {[%emt 0:00:03]} Kf7 {[%emt 0:00:05]} 57. h4 {[%emt 0:00:11]} Rxa3 {[%emt 0:00:02]} 58. Rb7+ {[%emt 0:00:03]} Kf6 {[%emt 0:00:03]} 59. Rb6+ {[%emt 0:00:01]} Kf7 {[%emt 0:00:02]} 60. Ke5 {[%emt 0:00:04]} Re3+ {[%emt 0:00:05]} 61. Kf4 {[%emt 0:00:03]} Rd3 {[%emt 0:00:02]} 62. Rd6 {[%emt 0:00:06]} Ke7 {[%emt 0:00:07]} 63. Rd5 {[%emt 0:00:05]} Ke6 {[%emt 0:00:04]} 64. Re5+ {[%emt 0:00:03]} Kf7 {[%emt 0:00:04]} 65. Ke4 {[%emt 0:00:07]} Rg3 {[%emt 0:00:02]} 66. Rf5+ {[%emt 0:00:04]} Ke7 {[%emt 0:00:06]} 67. Rf4 {[%emt 0:00:03]} Rg1 {[%emt 0:00:05]} 68. Ke5 {[%emt 0:00:04]} g6 {[%emt 0:00:06]} 69. d5 {[%emt 0:00:08]} Re1+ {[%emt 0:00:05]} 70. Re4 {[%emt 0:00:02]} Rh1 {[%emt 0:00:02]} 71. g5 {[%emt 0:00:09]} Rf1 {[%emt 0:00:03]} 72. d6+ {[%emt 0:00:02]} Kd7 {[%emt 0:00:02]} 73. Rf4 {[%emt 0:00:10]} Re1+ {[%emt 0:00:46]} 74. Kf6 {[%emt 0:00:07]} Re6+ {[%emt 0:00:02]} 75. Kf7 {[%emt 0:00:02]} Rxd6 {[%emt 0:00:02]} 76. Rf6 {[%emt 0:00:02]} Rd4 {[%emt 0:00:02]} 77. Kxg6 {[%emt 0:00:03]} Rxh4 {[%emt 0:00:02]} 78. Kf7 {[%emt 0:00:07]} Rh7+ {[%emt 0:00:06]} 79. Kg8 {[%emt 0:00:03]} Rh5 {[%emt 0:00:11]} 80. g6 {[%emt 0:00:11]} Ke7 {[%emt 0:00:03]} 81. Kg7 {[%emt 0:00:06]} Rh1 {[%emt 0:00:08]} 82. Rf2 {[%emt 0:00:05]} Rg1 {[%emt 0:00:07]} 83. Re2+ {[%emt 0:00:05]} Kd7 {[%emt 0:00:05]} 84. Kf7 {[%emt 0:00:03]} Rf1+ {[%emt 0:00:10]} 85. Kg8 {[%emt 0:00:03]} Rg1 {[%emt 0:00:03]} 86. g7 {[%emt 0:00:02]} Kd6 {[%emt 0:00:02]} 87. Rh2 {[%emt 0:00:21]} Ke7 {[%emt 0:00:05]} 88. Kh8 {[%emt 0:00:04]} 1-0

[Event "European Online Club-ch-H 2021"]
[Site "Online"]
[Date "2021.03.27"]
[Round "2.1"]
[White "Samani, Yamac"]
[Black "Vasli, Aref"]
[Result "1-0"]
[ECO "C92"]
[WhiteElo "2246"]
[BlackElo "2384"]
[Annotator "NA"]
[PlyCount "53"]
[EventDate "2021.03.27"]
[EventType "team-tourn"]
[EventCountry "NET"]
[SourceTitle "playchess.com"]
[Source "ChessBase"]
[SourceQuality "1"]
[TimeControl "900+5"]

1. e4 {[%emt 0:00:00]} e5 {[%emt 0:00:03]} 2. Nf3 {[%emt 0:00:02]} Nc6 {[%emt 0:00:01]} 3. Bb5 {[%emt 0:00:02]} a6 {[%emt 0:00:02]} 4. Ba4 {[%emt 0:00:01]} Nf6 {[%emt 0:00:01]} 5. O-O {[%emt 0:00:01]} Be7 {[%emt 0:00:01]} 6. Re1 {[%emt 0:00:02]} b5 {[%emt 0:00:02]} 7. Bb3 {[%emt 0:00:02]} d6 {[%emt 0:00:01]} 8. c3 {[%emt 0:00:02]} O-O {[%emt 0:00:01]} 9. h3 {[%emt 0:00:01]} Bb7 {[%emt 0:00:01]} 10. d4 {[%emt 0:00:10]} Re8 {[%emt 0:00:02]} 11. Nbd2 {[%emt 0:00:29]} exd4 {[%emt 0:00:25]} 12. cxd4 {[%emt 0:00:04]} Nd7 {[%emt 0:00:02]} 13. Nf1 {[%emt 0:00:31]} Na5 {[%emt 0:00:05]} 14. Bc2 {[%emt 0:00:02]} Bf6 {[%emt 0:00:02]} 15. Ng3 {[%emt 0:00:09]} g6 {[%emt 0:00:02]} 16. Rb1 {[%emt 0:01:27]} c5 {[%emt 0:00:04]} 17. e5 {[%emt 0:00:44]} Bg7 {[%emt 0:00:53]} 18. Ne4 {[%emt 0:01:52]} cxd4 {[%emt 0:00:58]} 19. Bg5 {[%emt 0:01:58]} Qb6 {[%emt 0:00:30]} 20. Nxd6 {[%emt 0:02:10]} Bxf3 {[%emt 0:00:07]} 21. Qxf3 {[%emt 0:00:01]} Nxe5 {[%emt 0:00:01]} 22. Qd5 {[%emt 0:00:15]} Rad8 {[%emt 0:01:23]} 23. Rxe5 {[%emt 0:01:42]} Rxe5 {[%emt 0:00:35]} 24. Qxf7+ {[%emt 0:00:06]} Kh8 {[%emt 0:00:02]} 25. Bf6 {[%emt 0:00:53]} Bxf6 {[%emt 0:00:57]} 26. Qxf6+ {[%emt 0:00:01]} Kg8 {[%emt 0:00:03]} 27. Bxg6 {[%emt 0:01:14]} 1-0

[Event "European Online Club-ch-H 2021"]
[Site "Online"]
[Date "2021.03.27"]
[Round "2.2"]
[White "Bromann, Thorbjorn"]
[Black "Agdelen, Huseyin Can"]
[Result "0-1"]
[ECO "D00"]
[WhiteElo "2392"]
[BlackElo "2206"]
[Annotator "NA"]
[PlyCount "56"]
[EventDate "2021.03.27"]
[EventType "team-tourn"]
[EventCountry "NET"]
[SourceTitle "playchess.com"]
[Source "ChessBase"]
[SourceQuality "1"]
[TimeControl "900+5"]

1. d4 {[%emt 0:00:00]} d5 {[%emt 0:00:11]} 2. Bg5 {[%emt 0:00:06]} h6 {[%emt 0:00:23]} 3. Bh4 {[%emt 0:00:02]} c5 {[%emt 0:00:03]} 4. dxc5 {[%emt 0:00:02]} Nc6 {[%emt 0:00:34]} 5. e4 {[%emt 0:00:07]} d4 {[%emt 0:02:16]} 6. c3 {[%emt 0:00:06]} Nf6 {[%emt 0:00:13]} 7. cxd4 {[%emt 0:00:59]} Qxd4 {[%emt 0:00:10]} 8. Nc3 {[%emt 0:00:10]} Qxc5 {[%emt 0:01:15]} 9. Rc1 {[%emt 0:00:36]} g5 {[%emt 0:02:31]} 10. Nd5 {[%emt 0:01:44]} Qd6 {[%emt 0:02:26]} 11. Bg3 {[%emt 0:00:02]} e5 {[%emt 0:00:03]} 12. f3 {[%emt 0:06:32]} Nxd5 {[%emt 0:02:37]} 13. exd5 {[%emt 0:00:00]} Ne7 {[%emt 0:02:41]} 14. Bb5+ {[%emt 0:00:41]} Kd8 {[%emt 0:00:15]} 15. Bc4 {[%emt 0:02:48]} f6 {[%emt 0:00:12]} 16. Ne2 {[%emt 0:00:03]} Qb4+ {[%emt 0:00:07]} 17. Rc3 {[%emt 0:00:20]} Nf5 {[%emt 0:00:07]} 18. Bf2 {[%emt 0:00:04]} Bc5 {[%emt 0:00:10]} 19. O-O {[%emt 0:00:17]} Bxf2+ {[%emt 0:00:02]} 20. Rxf2 {[%emt 0:00:00]} Nd6 {[%emt 0:00:09]} 21. a3 {[%emt 0:00:44]} Qb6 {[%emt 0:00:12]} 22. Ba2 {[%emt 0:00:04]} Bd7 {[%emt 0:00:03]} 23. Ng3 {[%emt 0:00:11]} Ke7 {[%emt 0:00:03]} 24. Qc2 {[%emt 0:00:30]} Rac8 {[%emt 0:00:04]} 25. Rxc8 {[%emt 0:00:03]} Rxc8 {[%emt 0:00:03]} 26. Qh7+ {[%emt 0:00:03]} Kd8 {[%emt 0:00:02]} 27. Qh8+ {[%emt 0:00:16]} Ne8 {[%emt 0:00:12]} 28. Nf1 {[%emt 0:00:39]} Rc2 {[%emt 0:00:02]} 0-1

[Event "European Online Club-ch-H 2021"]
[Site "Online"]
[Date "2021.03.27"]
[Round "2.3"]
[White "Sertbay, Huseyin"]
[Black "Laursen, Niels Norskov"]
[Result "1/2-1/2"]
[ECO "A61"]
[WhiteElo "2101"]
[BlackElo "2228"]
[Annotator "NA"]
[PlyCount "54"]
[EventDate "2021.03.27"]
[EventType "team-tourn"]
[EventCountry "NET"]
[SourceTitle "playchess.com"]
[Source "ChessBase"]
[SourceQuality "1"]
[TimeControl "900+5"]

1. d4 {[%emt 0:00:00]} Nf6 {[%emt 0:00:04]} 2. c4 {[%emt 0:00:02]} c5 {[%emt 0:00:02]} 3. d5 {[%emt 0:00:03]} e6 {[%emt 0:00:03]} 4. Nc3 {[%emt 0:00:03]} exd5 {[%emt 0:00:02]} 5. cxd5 {[%emt 0:00:01]} d6 {[%emt 0:00:02]} 6. h3 {[%emt 0:00:02]} g6 {[%emt 0:00:05]} 7. Nf3 {[%emt 0:00:02]} Bg7 {[%emt 0:00:04]} 8. Bf4 {[%emt 0:00:01]} O-O {[%emt 0:00:28]} 9. e3 {[%emt 0:00:01]} a6 {[%emt 0:00:07]} 10. a4 {[%emt 0:00:02]} Qe7 {[%emt 0:00:16]} 11. Be2 {[%emt 0:00:03]} Nbd7 {[%emt 0:00:10]} 12. O-O {[%emt 0:00:02]} Ne8 {[%emt 0:00:03]} 13. Nd2 {[%emt 0:01:20]} Ne5 {[%emt 0:00:04]} 14. Bh2 {[%emt 0:00:06]} f5 {[%emt 0:00:05]} 15. f4 {[%emt 0:02:47]} Nf7 {[%emt 0:00:03]} 16. e4 {[%emt 0:00:02]} fxe4 {[%emt 0:02:26]} 17. Ndxe4 {[%emt 0:00:06]} Bf5 {[%emt 0:00:40]} 18. Bd3 {[%emt 0:00:11]} Bxe4 {[%emt 0:02:55]} 19. Nxe4 {[%emt 0:00:02]} Bxb2 {[%emt 0:00:07]} 20. Rb1 {[%emt 0:00:02]} Bd4+ {[%emt 0:00:03]} 21. Kh1 {[%emt 0:00:01]} Ng7 {[%emt 0:01:04]} 22. Re1 {[%emt 0:00:45]} Qc7 {[%emt 0:00:21]} 23. Qd2 {[%emt 0:03:27]} Rab8 {[%emt 0:00:47]} 24. Ng3 {[%emt 0:01:01]} Nh6 {[%emt 0:00:21]} 25. Ne4 {[%emt 0:01:05]} Nf7 {[%emt 0:00:34]} 26. Ng3 {[%emt 0:00:03]} Nh6 {[%emt 0:01:21]} 27. Ne4 {[%emt 0:00:03]} Nf7 {[%emt 0:00:25]} 1/2-1/2

[Event "European Online Club-ch-H 2021"]
[Site "Online"]
[Date "2021.03.27"]
[Round "2.4"]
[White "Hald Falkesgaard, Jeppe"]
[Black "Atasoy, Ata"]
[Result "1-0"]
[ECO "D85"]
[WhiteElo "1986"]
[BlackElo "1636"]
[Annotator "NA"]
[PlyCount "39"]
[EventDate "2021.03.27"]
[EventType "team-tourn"]
[EventCountry "NET"]
[SourceTitle "playchess.com"]
[Source "ChessBase"]
[SourceQuality "1"]
[TimeControl "900+5"]

1. d4 {[%emt 0:00:00]} Nf6 {[%emt 0:00:06]} 2. c4 {[%emt 0:00:03]} g6 {[%emt 0:00:06]} 3. Nc3 {[%emt 0:00:02]} d5 {[%emt 0:00:03]} 4. cxd5 {[%emt 0:00:03]} Nxd5 {[%emt 0:00:03]} 5. e4 {[%emt 0:00:03]} Nxc3 {[%emt 0:00:03]} 6. bxc3 {[%emt 0:00:03]} Bg7 {[%emt 0:00:03]} 7. Rb1 {[%emt 0:00:04]} O-O {[%emt 0:00:18]} 8. Nf3 {[%emt 0:00:10]} c5 {[%emt 0:00:12]} 9. Be2 {[%emt 0:00:08]} Nc6 {[%emt 0:00:46]} 10. d5 {[%emt 0:00:09]} Bxc3+ {[%emt 0:02:20]} 11. Bd2 {[%emt 0:00:04]} Bxd2+ {[%emt 0:00:10]} 12. Qxd2 {[%emt 0:00:02]} Na5 {[%emt 0:00:58]} 13. h4 {[%emt 0:00:31]} f6 {[%emt 0:02:58]} 14. h5 {[%emt 0:01:06]} g5 {[%emt 0:01:12]} 15. h6 {[%emt 0:01:30]} e6 {[%emt 0:02:59]} 16. Qc3 {[%emt 0:05:03]} exd5 {[%emt 0:02:46]} 17. exd5 {[%emt 0:01:50]} g4 {[%emt 0:01:01]} 18. Ng5 {[%emt 0:00:27]} Qxd5 {[%emt 0:00:07]} 19. Nxh7 {[%emt 0:01:17]} Kxh7 {[%emt 0:00:00]} 20. Qxa5 {[%emt 0:00:04]} 1-0

[Event "European Online Club-ch-H 2021"]
[Site "Online"]
[Date "2021.03.27"]
[Round "2.5"]
[White "Sabuk, Piotr"]
[Black "Parvanyan, Ashot"]
[Result "1-0"]
[ECO "E97"]
[WhiteElo "2366"]
[BlackElo "2436"]
[Annotator "NA"]
[PlyCount "65"]
[EventDate "2021.03.27"]
[EventType "team-tourn"]
[EventCountry "NET"]
[SourceTitle "playchess.com"]
[Source "ChessBase"]
[SourceQuality "1"]
[TimeControl "900+5"]

1. d4 {[%emt 0:00:00]} Nf6 {[%emt 0:00:09]} 2. c4 {[%emt 0:00:03]} g6 {[%emt 0:00:07]} 3. Nc3 {[%emt 0:00:03]} Bg7 {[%emt 0:00:01]} 4. e4 {[%emt 0:00:02]} d6 {[%emt 0:00:03]} 5. Nf3 {[%emt 0:00:02]} O-O {[%emt 0:00:02]} 6. Be2 {[%emt 0:00:04]} e5 {[%emt 0:00:05]} 7. O-O {[%emt 0:00:03]} Nc6 {[%emt 0:00:07]} 8. d5 {[%emt 0:00:02]} Ne7 {[%emt 0:00:03]} 9. b4 {[%emt 0:00:02]} a5 {[%emt 0:00:05]} 10. bxa5 {[%emt 0:00:03]} Rxa5 {[%emt 0:00:03]} 11. a4 {[%emt 0:00:14]} Nh5 {[%emt 0:00:13]} 12. Re1 {[%emt 0:00:29]} f5 {[%emt 0:00:10]} 13. Bd2 {[%emt 0:01:25]} Nf4 {[%emt 0:02:08]} 14. Bf1 {[%emt 0:00:09]} h6 {[%emt 0:01:02]} 15. exf5 {[%emt 0:04:15]} Bxf5 {[%emt 0:02:01]} 16. Ra3 {[%emt 0:00:43]} Ra8 {[%emt 0:04:07]} 17. a5 {[%emt 0:01:19]} g5 {[%emt 0:02:04]} 18. Ne4 {[%emt 0:00:33]} Neg6 {[%emt 0:00:34]} 19. Bb4 {[%emt 0:00:04]} Qd7 {[%emt 0:00:48]} 20. c5 {[%emt 0:00:33]} Bxe4 {[%emt 0:02:38]} 21. Rxe4 {[%emt 0:00:06]} Qf5 {[%emt 0:00:03]} 22. Qe1 {[%emt 0:01:30]} Nxd5 {[%emt 0:00:07]} 23. Bc4 {[%emt 0:00:02]} c6 {[%emt 0:00:02]} 24. cxd6 {[%emt 0:00:06]} Kh8 {[%emt 0:00:02]} 25. Bc5 {[%emt 0:00:09]} Ngf4 {[%emt 0:00:03]} 26. Nxe5 {[%emt 0:00:14]} Rfe8 {[%emt 0:00:13]} 27. Bd4 {[%emt 0:00:16]} c5 {[%emt 0:00:01]} 28. d7 {[%emt 0:00:29]} Red8 {[%emt 0:00:08]} 29. Bxc5 {[%emt 0:00:17]} Kh7 {[%emt 0:00:08]} 30. Rf3 {[%emt 0:00:57]} Nf6 {[%emt 0:00:02]} 31. Rexf4 {[%emt 0:00:10]} Qxf4 {[%emt 0:00:10]} 32. Rxf4 {[%emt 0:00:02]} gxf4 {[%emt 0:00:00]} 33. Qb1+ {[%emt 0:00:04]} 1-0

[Event "European Online Club-ch-H 2021"]
[Site "Online"]
[Date "2021.03.27"]
[Round "2.6"]
[White "Olsen, Filip Boe"]
[Black "Valuet, Bertrand"]
[Result "1-0"]
[ECO "E11"]
[WhiteElo "2379"]
[BlackElo "2217"]
[Annotator "NA"]
[PlyCount "151"]
[EventDate "2021.03.27"]
[EventType "team-tourn"]
[EventCountry "NET"]
[SourceTitle "playchess.com"]
[Source "ChessBase"]
[SourceQuality "1"]
[TimeControl "900+5"]

1. d4 {[%emt 0:00:00]} Nf6 {[%emt 0:00:07]} 2. c4 {[%emt 0:00:05]} e6 {[%emt 0:00:03]} 3. Nf3 {[%emt 0:00:11]} d5 {[%emt 0:00:03]} 4. g3 {[%emt 0:00:03]} Bb4+ {[%emt 0:00:29]} 5. Bd2 {[%emt 0:00:03]} Be7 {[%emt 0:00:02]} 6. Bg2 {[%emt 0:00:03]} O-O {[%emt 0:00:40]} 7. O-O {[%emt 0:00:02]} c6 {[%emt 0:00:08]} 8. Bf4 {[%emt 0:00:12]} dxc4 {[%emt 0:00:50]} 9. Ne5 {[%emt 0:00:40]} Nd5 {[%emt 0:00:03]} 10. Nxc4 {[%emt 0:00:05]} Nxf4 {[%emt 0:00:03]} 11. gxf4 {[%emt 0:00:01]} Bf6 {[%emt 0:00:06]} 12. e3 {[%emt 0:00:18]} Qe7 {[%emt 0:01:37]} 13. Nc3 {[%emt 0:01:52]} Rd8 {[%emt 0:00:27]} 14. Qc2 {[%emt 0:01:13]} b6 {[%emt 0:00:13]} 15. Rac1 {[%emt 0:00:59]} Bb7 {[%emt 0:00:12]} 16. Ne4 {[%emt 0:00:55]} Na6 {[%emt 0:00:48]} 17. Ne5 {[%emt 0:01:58]} c5 {[%emt 0:03:47]} 18. dxc5 {[%emt 0:02:27]} Bxe5 {[%emt 0:00:05]} 19. c6 {[%emt 0:02:05]} Rac8 {[%emt 0:03:10]} 20. fxe5 {[%emt 0:01:03]} Nb4 {[%emt 0:00:16]} 21. Qb1 {[%emt 0:02:04]} Bxc6 {[%emt 0:00:15]} 22. a3 {[%emt 0:00:05]} Nd3 {[%emt 0:00:37]} 23. Rc3 {[%emt 0:00:24]} Bxe4 {[%emt 0:01:07]} 24. Bxe4 {[%emt 0:00:02]} Rxc3 {[%emt 0:00:03]} 25. bxc3 {[%emt 0:00:02]} Nxe5 {[%emt 0:00:14]} 26. Bxh7+ {[%emt 0:00:03]} Kh8 {[%emt 0:00:02]} 27. Be4 {[%emt 0:00:01]} Rd2 {[%emt 0:00:06]} 28. Qb4 {[%emt 0:00:05]} Qg5+ {[%emt 0:00:08]} 29. Kh1 {[%emt 0:00:03]} f5 {[%emt 0:00:03]} 30. Bg2 {[%emt 0:00:05]} Ng4 {[%emt 0:00:06]} 31. Kg1 {[%emt 0:00:11]} Nxe3 {[%emt 0:00:08]} 32. Qf8+ {[%emt 0:00:05]} Kh7 {[%emt 0:00:03]} 33. Qa8 {[%emt 0:00:06]} Ng4 {[%emt 0:00:09]} 34. Qf3 {[%emt 0:00:04]} Ra2 {[%emt 0:00:15]} 35. h3 {[%emt 0:00:04]} Nf6 {[%emt 0:00:06]} 36. c4 {[%emt 0:00:08]} Ne4 {[%emt 0:00:05]} 37. Qe3 {[%emt 0:00:06]} Qxe3 {[%emt 0:00:05]} 38. fxe3 {[%emt 0:00:01]} Rxa3 {[%emt 0:00:05]} 39. Bxe4 {[%emt 0:00:02]} fxe4 {[%emt 0:00:02]} 40. Rf7 {[%emt 0:00:03]} Rxe3 {[%emt 0:00:08]} 41. Rxa7 {[%emt 0:00:01]} Rxh3 {[%emt 0:00:02]} 42. Rb7 {[%emt 0:00:04]} Rc3 {[%emt 0:00:03]} 43. Rxb6 {[%emt 0:00:01]} Rxc4 {[%emt 0:00:02]} 44. Rxe6 {[%emt 0:00:01]} g6 {[%emt 0:00:03]} 45. Kf2 {[%emt 0:00:01]} Kh6 {[%emt 0:00:01]} 46. Re5 {[%emt 0:00:05]} g5 {[%emt 0:00:08]} 47. Kg3 {[%emt 0:00:02]} Kh5 {[%emt 0:00:02]} 48. Re8 {[%emt 0:00:06]} Rc3+ {[%emt 0:00:04]} 49. Kg2 {[%emt 0:00:01]} e3 {[%emt 0:00:06]} 50. Kf3 {[%emt 0:00:03]} g4+ {[%emt 0:00:07]} 51. Kf4 {[%emt 0:00:04]} e2 {[%emt 0:00:13]} 52. Rxe2 {[%emt 0:00:06]} Rf3+ {[%emt 0:00:02]} 53. Ke4 {[%emt 0:00:04]} Kh4 {[%emt 0:00:03]} 54. Ra2 {[%emt 0:00:10]} Kh3 {[%emt 0:00:02]} 55. Rb2 {[%emt 0:00:08]} Rf7 {[%emt 0:00:09]} 56. Ke3 {[%emt 0:00:08]} g3 {[%emt 0:00:03]} 57. Rb8 {[%emt 0:00:01]} Kg2 {[%emt 0:00:06]} 58. Rg8 {[%emt 0:00:04]} Kh2 {[%emt 0:00:04]} 59. Rh8+ {[%emt 0:00:02]} Kg1 {[%emt 0:00:02]} 60. Rg8 {[%emt 0:00:02]} g2 {[%emt 0:00:03]} 61. Ke2 {[%emt 0:00:01]} Rf2+ {[%emt 0:00:10]} 62. Ke1 {[%emt 0:00:02]} Rf4 {[%emt 0:00:04]} 63. Ke2 {[%emt 0:00:09]} Rf3 {[%emt 0:00:13]} 64. Kxf3 {[%emt 0:00:03]} Kh1 {[%emt 0:00:03]} 65. Kf2 {[%emt 0:00:02]} g1=Q+ {[%emt 0:00:06]} 66. Rxg1+ {[%emt 0:00:02]} Kh2 {[%emt 0:00:02]} 67. Rg8 {[%emt 0:00:02]} Kh3 {[%emt 0:00:02]} 68. Rg7 {[%emt 0:00:03]} Kh4 {[%emt 0:00:02]} 69. Kf3 {[%emt 0:00:01]} Kh5 {[%emt 0:00:02]} 70. Kf4 {[%emt 0:00:01]} Kh6 {[%emt 0:00:02]} 71. Rg1 {[%emt 0:00:02]} Kh7 {[%emt 0:00:02]} 72. Kf5 {[%emt 0:00:01]} Kh8 {[%emt 0:00:01]} 73. Kf6 {[%emt 0:00:01]} Kh7 {[%emt 0:00:02]} 74. Rg2 {[%emt 0:00:02]} Kh8 {[%emt 0:00:02]} 75. Kf7 {[%emt 0:00:01]} Kh7 {[%emt 0:00:01]} 76. Rh2# {[%emt 0:00:01]} 1-0

[Event "European Online Club-ch-H 2021"]
[Site "Online"]
[Date "2021.03.27"]
[Round "2.7"]
[White "Appendino, Jerome"]
[Black "Pajeken, Jakob Leon"]
[Result "0-1"]
[ECO "C97"]
[WhiteElo "2175"]
[BlackElo "2323"]
[Annotator "NA"]
[PlyCount "80"]
[EventDate "2021.03.27"]
[EventType "team-tourn"]
[EventCountry "NET"]
[SourceTitle "playchess.com"]
[Source "ChessBase"]
[SourceQuality "1"]
[TimeControl "900+5"]

1. e4 {[%emt 0:00:00]} e5 {[%emt 0:00:03]} 2. Nf3 {[%emt 0:00:07]} Nc6 {[%emt 0:00:02]} 3. Bb5 {[%emt 0:00:03]} a6 {[%emt 0:00:04]} 4. Ba4 {[%emt 0:00:03]} Nf6 {[%emt 0:00:04]} 5. O-O {[%emt 0:00:04]} Be7 {[%emt 0:00:05]} 6. Re1 {[%emt 0:00:02]} b5 {[%emt 0:00:02]} 7. Bb3 {[%emt 0:00:01]} d6 {[%emt 0:00:01]} 8. c3 {[%emt 0:00:02]} O-O {[%emt 0:00:01]} 9. h3 {[%emt 0:00:01]} Na5 {[%emt 0:00:04]} 10. Bc2 {[%emt 0:00:01]} c5 {[%emt 0:00:09]} 11. d4 {[%emt 0:00:01]} Qc7 {[%emt 0:00:02]} 12. d5 {[%emt 0:00:05]} Nd7 {[%emt 0:00:03]} 13. Nbd2 {[%emt 0:00:08]} Nb6 {[%emt 0:00:04]} 14. Nf1 {[%emt 0:00:30]} f5 {[%emt 0:00:07]} 15. exf5 {[%emt 0:00:53]} Bxf5 {[%emt 0:00:08]} 16. Bxf5 {[%emt 0:00:15]} Rxf5 {[%emt 0:00:02]} 17. Ng3 {[%emt 0:00:11]} Rf7 {[%emt 0:00:09]} 18. Bg5 {[%emt 0:01:15]} h6 {[%emt 0:00:16]} 19. Bxe7 {[%emt 0:00:37]} Qxe7 {[%emt 0:00:11]} 20. b3 {[%emt 0:00:21]} c4 {[%emt 0:00:15]} 21. b4 {[%emt 0:00:30]} Nb7 {[%emt 0:00:02]} 22. Qd2 {[%emt 0:00:21]} Raf8 {[%emt 0:00:11]} 23. Rad1 {[%emt 0:01:46]} Nd8 {[%emt 0:01:35]} 24. Re2 {[%emt 0:00:32]} Rf4 {[%emt 0:00:33]} 25. Nd4 {[%emt 0:03:44]} R4f6 {[%emt 0:01:06]} 26. Nf3 {[%emt 0:02:03]} Nf7 {[%emt 0:00:51]} 27. Ne4 {[%emt 0:00:40]} Rf4 {[%emt 0:00:33]} 28. Qe3 {[%emt 0:00:40]} Na4 {[%emt 0:00:22]} 29. g3 {[%emt 0:00:09]} Rxe4 {[%emt 0:00:15]} 30. Qxe4 {[%emt 0:00:01]} Nxc3 {[%emt 0:00:03]} 31. Qc2 {[%emt 0:00:02]} Nxd1 {[%emt 0:00:08]} 32. Qxd1 {[%emt 0:00:01]} Ng5 {[%emt 0:00:13]} 33. Nxg5 {[%emt 0:00:14]} Qxg5 {[%emt 0:00:03]} 34. Kg2 {[%emt 0:00:09]} Qf5 {[%emt 0:00:09]} 35. Rd2 {[%emt 0:00:18]} Qe4+ {[%emt 0:00:10]} 36. f3 {[%emt 0:00:32]} Qe3 {[%emt 0:00:13]} 37. Qe2 {[%emt 0:00:13]} Rxf3 {[%emt 0:00:08]} 38. Qxf3 {[%emt 0:00:11]} Qxd2+ {[%emt 0:00:02]} 39. Kg1 {[%emt 0:00:03]} Qd3 {[%emt 0:00:24]} 40. Qh5 {[%emt 0:00:31]} Qxd5 {[%emt 0:00:10]} 0-1